[Event "Titled Tuesday Blitz May 03 Early 2022"]
[White "Soucek, Petr"]
[Black "Skliarov, Viktor"]
[WhiteFideId "23715170"]
[BlackFideId "14106736"]
[WhiteElo "1979"]
[BlackElo "2229"]
[Result "0-1"]
[Round "01"]
[TimeControl "180+1"]
[Date "2022.05.03"]
[WhiteClock "0:00:12"]
[BlackClock "0:00:18"]

1. e4 {[%clk 0:02:56]}  c5 {[%clk 0:02:58]} 2. Nf3 {[%clk 0:02:54]}  Nc6 {[%clk 0:02:58]} 3. Bb5 {[%clk 0:02:53]}  e6 {[%clk 0:02:58]} 4. Bxc6 {[%clk 0:02:48]}  bxc6 {[%clk 0:02:59]} 5. O-O {[%clk 0:02:48]}  Ne7 {[%clk 0:02:59]} 6. d3 {[%clk 0:02:46]}  Ng6 {[%clk 0:02:59]} 7. Nbd2 {[%clk 0:02:45]}  e5 {[%clk 0:02:57]} 8. Nc4 {[%clk 0:02:42]}  d6 {[%clk 0:02:56]} 9. a4 {[%clk 0:02:42]}  Be7 {[%clk 0:02:56]} 10. Re1 {[%clk 0:02:40]}  O-O {[%clk 0:02:56]} 11. Ne3 {[%clk 0:02:39]}  f5 {[%clk 0:02:45]} 12. exf5 {[%clk 0:02:35]}  Bxf5 {[%clk 0:02:46]} 13. Nxf5 {[%clk 0:02:36]}  Rxf5 {[%clk 0:02:46]} 14. Nd2 {[%clk 0:02:35]}  Qd7 {[%clk 0:02:33]} 15. Ne4 {[%clk 0:02:27]}  Raf8 {[%clk 0:02:33]} 16. Be3 {[%clk 0:02:10]}  Nf4 {[%clk 0:02:13]} 17. Ng3 {[%clk 0:02:06]}  Rg5 {[%clk 0:02:05]} 18. Kh1 {[%clk 0:01:43]}  h5 {[%clk 0:01:28]} 19. f3 {[%clk 0:01:26]}  h4 {[%clk 0:01:12]} 20. Bxf4 {[%clk 0:01:25]}  Rxf4 {[%clk 0:01:13]} 21. Ne4 {[%clk 0:01:24]}  Rg6 {[%clk 0:01:11]} 22. h3 {[%clk 0:01:23]}  Qf5 {[%clk 0:00:55]} 23. c3 {[%clk 0:00:57]}  d5 {[%clk 0:00:40]} 24. Nf2 {[%clk 0:00:50]}  c4 {[%clk 0:00:40]} 25. dxc4 {[%clk 0:00:47]}  Rxc4 {[%clk 0:00:39]} 26. Ng4 {[%clk 0:00:43]}  Bd6 {[%clk 0:00:39]} 27. a5 {[%clk 0:00:38]}  Qf4 {[%clk 0:00:32]} 28. Qc1 {[%clk 0:00:26]}  Qg3 {[%clk 0:00:32]} 29. Qe3 {[%clk 0:00:17]}  a6 {[%clk 0:00:22]} 30. Qf2 {[%clk 0:00:16]}  Rgxg4 {[%clk 0:00:20]} 31. Qxg3 {[%clk 0:00:13]}  Rxg3 {[%clk 0:00:20]} 32. Re3 {[%clk 0:00:10]}  Kf7 {[%clk 0:00:19]} 33. b3 {[%clk 0:00:09]}  Rc5 {[%clk 0:00:19]} 34. b4 {[%clk 0:00:09]}  Rc4 {[%clk 0:00:19]} 35. b5 {[%clk 0:00:10]}  cxb5 {[%clk 0:00:19]} 36. Rd1 {[%clk 0:00:11]}  Ke6 {[%clk 0:00:19]} 37. Red3 {[%clk 0:00:11]}  Rc5 {[%clk 0:00:20]} 38. Kh2 {[%clk 0:00:11]}  e4 {[%clk 0:00:18]} 39. fxe4 {[%clk 0:00:12]}  Rxd3+ {[%clk 0:00:18]} 0-1


[Site "https://www.chess.com"]

[Event "Titled Tuesday Blitz May 03 Early 2022"]
[White "Stevens, Christian"]
[Black "Jumabayev, Rinat"]
[WhiteFideId "2604450"]
[BlackFideId "13702661"]
[WhiteElo "2497"]
[BlackElo "2561"]
[Result "0-1"]
[Round "01"]
[TimeControl "180+1"]
[Date "2022.05.03"]
[WhiteClock "0:00:01"]
[BlackClock "0:00:19"]

1. e4 {[%clk 0:02:29]}  c5 {[%clk 0:02:57]} 2. Nf3 {[%clk 0:02:28]}  d6 {[%clk 0:02:57]} 3. d4 {[%clk 0:02:27]}  cxd4 {[%clk 0:02:58]} 4. Nxd4 {[%clk 0:02:27]}  Nf6 {[%clk 0:02:59]} 5. f3 {[%clk 0:02:26]}  e5 {[%clk 0:02:50]} 6. Nb3 {[%clk 0:02:24]}  Be6 {[%clk 0:02:49]} 7. c4 {[%clk 0:02:22]}  a5 {[%clk 0:02:46]} 8. Be3 {[%clk 0:02:19]}  a4 {[%clk 0:02:38]} 9. N3d2 {[%clk 0:02:19]}  Be7 {[%clk 0:02:37]} 10. Be2 {[%clk 0:02:17]}  O-O {[%clk 0:02:34]} 11. O-O {[%clk 0:02:16]}  Qa5 {[%clk 0:02:34]} 12. Na3 {[%clk 0:02:12]}  Bd8 {[%clk 0:02:24]} 13. Ndb1 {[%clk 0:02:01]}  Bb6 {[%clk 0:02:22]} 14. Bf2 {[%clk 0:02:01]}  Bxf2+ {[%clk 0:02:09]} 15. Rxf2 {[%clk 0:01:59]}  Rd8 {[%clk 0:02:08]} 16. Nc3 {[%clk 0:01:49]}  Nc6 {[%clk 0:02:08]} 17. Bf1 {[%clk 0:01:39]}  Nd7 {[%clk 0:01:55]} 18. Qd2 {[%clk 0:01:28]}  Nc5 {[%clk 0:01:55]} 19. Kh1 {[%clk 0:01:09]}  Qb6 {[%clk 0:01:24]} 20. Qe3 {[%clk 0:00:42]}  Na5 {[%clk 0:01:02]} 21. Rc1 {[%clk 0:00:23]}  Qb4 {[%clk 0:00:57]} 22. Nd5 {[%clk 0:00:13]}  Bxd5 {[%clk 0:00:54]} 23. cxd5 {[%clk 0:00:14]}  Rf8 {[%clk 0:00:41]} 24. Rfc2 {[%clk 0:00:10]}  Rad8 {[%clk 0:00:28]} 25. Qd2 {[%clk 0:00:06]}  Qxd2 {[%clk 0:00:25]} 26. Rxd2 {[%clk 0:00:07]}  f5 {[%clk 0:00:25]} 27. exf5 {[%clk 0:00:07]}  Rxf5 {[%clk 0:00:26]} 28. Bb5 {[%clk 0:00:06]}  Rf4 {[%clk 0:00:25]} 29. Kg1 {[%clk 0:00:05]}  Kf7 {[%clk 0:00:24]} 30. Nc4 {[%clk 0:00:03]}  Nxc4 {[%clk 0:00:24]} 31. Rxc4 {[%clk 0:00:04]}  Rxc4 {[%clk 0:00:20]} 32. Bxc4 {[%clk 0:00:05]}  Ra8 {[%clk 0:00:20]} 33. Rc2 {[%clk 0:00:05]}  Ra5 {[%clk 0:00:20]} 34. Kf2 {[%clk 0:00:05]}  Kf6 {[%clk 0:00:21]} 35. Ke3 {[%clk 0:00:05]}  b5 {[%clk 0:00:21]} 36. Be2 {[%clk 0:00:04]}  b4 {[%clk 0:00:21]} 37. Rc4 {[%clk 0:00:04]}  Rb5 {[%clk 0:00:20]} 38. Rh4 {[%clk 0:00:03]}  Rb8 {[%clk 0:00:20]} 39. Rxh7 {[%clk 0:00:01]}  a3 {[%clk 0:00:20]} 40. b3 {[%clk 0:00:01]}  Nxb3 {[%clk 0:00:19]} 41. Bd3 {[%clk 0:00:01]}  Nc5 {[%clk 0:00:19]} 42. Bc2 {[%clk 0:00:01]}  b3 {[%clk 0:00:19]} 0-1


[Site "https://www.chess.com"]

[Event "Titled Tuesday Blitz May 03 Early 2022"]
[White "Suarez Uriel, Adrian"]
[Black "Srihari L R"]
[WhiteFideId "22230874"]
[BlackFideId "46617116"]
[WhiteElo "2316"]
[BlackElo "2121"]
[Result "1-0"]
[Round "01"]
[TimeControl "180+1"]
[Date "2022.05.03"]
[WhiteClock "0:00:18"]
[BlackClock "0:00:08"]

1. e4 {[%clk 0:03:00]}  c5 {[%clk 0:02:55]} 2. Ne2 {[%clk 0:02:59]}  Nc6 {[%clk 0:02:54]} 3. d4 {[%clk 0:02:59]}  cxd4 {[%clk 0:02:53]} 4. Nxd4 {[%clk 0:03:00]}  Nf6 {[%clk 0:02:52]} 5. Nc3 {[%clk 0:03:00]}  d6 {[%clk 0:02:52]} 6. Bg5 {[%clk 0:03:00]}  e6 {[%clk 0:02:53]} 7. Qd2 {[%clk 0:03:00]}  Be7 {[%clk 0:02:52]} 8. O-O-O {[%clk 0:03:01]}  a6 {[%clk 0:02:52]} 9. f4 {[%clk 0:02:58]}  Qc7 {[%clk 0:02:48]} 10. Nxc6 {[%clk 0:02:45]}  bxc6 {[%clk 0:02:41]} 11. Qe1 {[%clk 0:02:29]}  h6 {[%clk 0:02:29]} 12. Bh4 {[%clk 0:02:28]}  Bd7 {[%clk 0:02:26]} 13. e5 {[%clk 0:02:27]}  dxe5 {[%clk 0:02:25]} 14. fxe5 {[%clk 0:02:26]}  Nd5 {[%clk 0:02:26]} 15. Bxe7 {[%clk 0:02:26]}  Kxe7 {[%clk 0:02:26]} 16. Nxd5+ {[%clk 0:02:03]}  cxd5 {[%clk 0:02:27]} 17. Qb4+ {[%clk 0:02:03]}  Ke8 {[%clk 0:02:24]} 18. Qd4 {[%clk 0:02:00]}  Rc8 {[%clk 0:02:19]} 19. Bd3 {[%clk 0:02:00]}  a5 {[%clk 0:02:12]} 20. Rhf1 {[%clk 0:01:57]}  Ke7 {[%clk 0:02:11]} 21. Qh4+ {[%clk 0:01:55]}  g5 {[%clk 0:02:10]} 22. Qf2 {[%clk 0:01:55]}  Rcf8 {[%clk 0:02:01]} 23. Qf6+ {[%clk 0:01:54]}  Ke8 {[%clk 0:02:00]} 24. Kb1 {[%clk 0:01:51]}  Qd8 {[%clk 0:01:52]} 25. Qf2 {[%clk 0:01:45]}  Qc7 {[%clk 0:01:51]} 26. c4 {[%clk 0:01:43]}  dxc4 {[%clk 0:01:46]} 27. Rc1 {[%clk 0:01:43]}  Qxe5 {[%clk 0:01:39]} 28. Bxc4 {[%clk 0:01:42]}  Ke7 {[%clk 0:01:34]} 29. Rfe1 {[%clk 0:01:41]}  Qd6 {[%clk 0:01:23]} 30. Rcd1 {[%clk 0:01:40]}  Qb4 {[%clk 0:01:21]} 31. Qd4 {[%clk 0:01:38]}  Rd8 {[%clk 0:01:19]} 32. a3 {[%clk 0:01:37]}  Qb8 {[%clk 0:01:14]} 33. Qc5+ {[%clk 0:01:37]}  Ke8 {[%clk 0:01:11]} 34. Qxa5 {[%clk 0:01:29]}  Bc6 {[%clk 0:00:52]} 35. Rxd8+ {[%clk 0:01:18]}  Qxd8 {[%clk 0:00:53]} 36. Qc5 {[%clk 0:01:19]}  Bd7 {[%clk 0:00:49]} 37. Rd1 {[%clk 0:01:19]}  Qe7 {[%clk 0:00:43]} 38. Qd4 {[%clk 0:01:18]}  e5 {[%clk 0:00:41]} 39. Qd5 {[%clk 0:01:15]}  Bf5+ {[%clk 0:00:40]} 40. Ka1 {[%clk 0:01:14]}  Kf8 {[%clk 0:00:39]} 41. Rf1 {[%clk 0:01:13]}  Bg6 {[%clk 0:00:38]} 42. Re1 {[%clk 0:01:13]}  Kg7 {[%clk 0:00:36]} 43. Rxe5 {[%clk 0:01:13]}  Qf6 {[%clk 0:00:36]} 44. Re1 {[%clk 0:01:09]}  Rd8 {[%clk 0:00:36]} 45. Qa5 {[%clk 0:01:07]}  Rc8 {[%clk 0:00:34]} 46. Rf1 {[%clk 0:01:07]}  Qd4 {[%clk 0:00:33]} 47. Bb3 {[%clk 0:00:59]}  Rb8 {[%clk 0:00:27]} 48. Qa4 {[%clk 0:00:59]}  Qd3 {[%clk 0:00:22]} 49. Bc4 {[%clk 0:00:58]}  Qd4 {[%clk 0:00:21]} 50. Bb5 {[%clk 0:00:51]}  Qb6 {[%clk 0:00:18]} 51. h4 {[%clk 0:00:33]}  Qxb5 {[%clk 0:00:16]} 52. Qxb5 {[%clk 0:00:32]}  Rxb5 {[%clk 0:00:17]} 53. hxg5 {[%clk 0:00:33]}  hxg5 {[%clk 0:00:17]} 54. b4 {[%clk 0:00:33]}  Be4 {[%clk 0:00:12]} 55. Rf2 {[%clk 0:00:31]}  Rd5 {[%clk 0:00:12]} 56. Kb2 {[%clk 0:00:31]}  Rd1 {[%clk 0:00:12]} 57. a4 {[%clk 0:00:28]}  Rb1+ {[%clk 0:00:11]} 58. Kc3 {[%clk 0:00:28]}  f5 {[%clk 0:00:09]} 59. a5 {[%clk 0:00:27]}  g4 {[%clk 0:00:09]} 60. a6 {[%clk 0:00:23]}  Ra1 {[%clk 0:00:08]} 61. b5 {[%clk 0:00:22]}  g3 {[%clk 0:00:09]} 62. Rd2 {[%clk 0:00:22]}  f4 {[%clk 0:00:08]} 63. Rd4 {[%clk 0:00:20]}  f3 {[%clk 0:00:07]} 64. Rxe4 {[%clk 0:00:17]}  f2 {[%clk 0:00:02]} 65. Rf4 {[%clk 0:00:16]}  Kg6 {[%clk 0:00:02]} 66. Kb4 {[%clk 0:00:14]}  Kg5 {[%clk 0:00:02]} 67. Rf8 {[%clk 0:00:14]}  Rb1+ {[%clk 0:00:02]} 68. Kc5 {[%clk 0:00:14]}  Rc1+ {[%clk 0:00:02]} 69. Kb6 {[%clk 0:00:15]}  f1=Q {[%clk 0:00:02]} 70. Rxf1 {[%clk 0:00:13]}  Rxf1 {[%clk 0:00:03]} 71. a7 {[%clk 0:00:14]}  Ra1 {[%clk 0:00:03]} 72. Kb7 {[%clk 0:00:14]}  Kf4 {[%clk 0:00:04]} 73. b6 {[%clk 0:00:15]}  Ke3 {[%clk 0:00:04]} 74. Kb8 {[%clk 0:00:14]}  Kf2 {[%clk 0:00:03]} 75. a8=Q {[%clk 0:00:15]}  Rxa8+ {[%clk 0:00:03]} 76. Kxa8 {[%clk 0:00:16]}  Kxg2 {[%clk 0:00:04]} 77. b7 {[%clk 0:00:17]}  Kf2 {[%clk 0:00:02]} 78. b8=Q {[%clk 0:00:18]}  g2 {[%clk 0:00:03]} 79. Qf4+ {[%clk 0:00:18]}  Kg1 {[%clk 0:00:04]} 80. Kb7 {[%clk 0:00:17]}  Kh1 {[%clk 0:00:04]} 81. Qh4+ {[%clk 0:00:18]}  Kg1 {[%clk 0:00:05]} 82. Kc6 {[%clk 0:00:18]}  Kf1 {[%clk 0:00:06]} 83. Qf4+ {[%clk 0:00:18]}  Ke2 {[%clk 0:00:06]} 84. Qg3 {[%clk 0:00:19]}  Kf1 {[%clk 0:00:07]} 85. Qf3+ {[%clk 0:00:19]}  Kg1 {[%clk 0:00:08]} 86. Kd5 {[%clk 0:00:20]}  Kh2 {[%clk 0:00:09]} 87. Qh5+ {[%clk 0:00:20]}  Kg3 {[%clk 0:00:09]} 88. Qg5+ {[%clk 0:00:19]}  Kf2 {[%clk 0:00:07]} 89. Qf4+ {[%clk 0:00:19]}  Ke2 {[%clk 0:00:07]} 90. Qg3 {[%clk 0:00:19]}  Kf1 {[%clk 0:00:08]} 91. Ke4 {[%clk 0:00:19]}  Kg1 {[%clk 0:00:08]} 92. Kf3 {[%clk 0:00:19]}  Kf1 {[%clk 0:00:07]} 93. Qxg2+ {[%clk 0:00:20]}  Ke1 {[%clk 0:00:08]} 94. Qe2# {[%clk 0:00:18]} 1-0


[Site "https://www.chess.com"]

[Event "Titled Tuesday Blitz May 03 Early 2022"]
[White "Tasev, Dejan"]
[Black "Menna Barreto, Felipe Kubiaki"]
[WhiteFideId "936618"]
[BlackFideId "2119757"]
[WhiteElo "2253"]
[BlackElo "2261"]
[Result "1-0"]
[Round "01"]
[TimeControl "180+1"]
[Date "2022.05.03"]
[WhiteClock "0:00:55"]
[BlackClock "0:01:35"]

1. e4 {[%clk 0:02:58]}  c5 {[%clk 0:03:00]} 2. Nf3 {[%clk 0:02:57]}  e6 {[%clk 0:03:01]} 3. b3 {[%clk 0:02:56]}  d5 {[%clk 0:03:01]} 4. exd5 {[%clk 0:02:55]}  exd5 {[%clk 0:03:01]} 5. Bb5+ {[%clk 0:02:55]}  Bd7 {[%clk 0:03:01]} 6. Bxd7+ {[%clk 0:02:53]}  Qxd7 {[%clk 0:03:01]} 7. O-O {[%clk 0:02:53]}  Nf6 {[%clk 0:03:00]} 8. Bb2 {[%clk 0:02:53]}  Be7 {[%clk 0:03:00]} 9. Re1 {[%clk 0:02:53]}  O-O {[%clk 0:03:00]} 10. d3 {[%clk 0:02:53]}  Nc6 {[%clk 0:03:00]} 11. Nbd2 {[%clk 0:02:53]}  Rfe8 {[%clk 0:03:00]} 12. Nf1 {[%clk 0:02:47]}  d4 {[%clk 0:02:59]} 13. Ng3 {[%clk 0:02:46]}  Nd5 {[%clk 0:02:58]} 14. Qd2 {[%clk 0:02:41]}  Bf8 {[%clk 0:02:56]} 15. Rxe8 {[%clk 0:02:39]}  Rxe8 {[%clk 0:02:56]} 16. Re1 {[%clk 0:02:39]}  Rxe1+ {[%clk 0:02:56]} 17. Qxe1 {[%clk 0:02:40]}  g6 {[%clk 0:02:52]} 18. a3 {[%clk 0:02:37]}  a5 {[%clk 0:02:50]} 19. Bc1 {[%clk 0:02:34]}  Qe7 {[%clk 0:02:42]} 20. Qxe7 {[%clk 0:02:32]}  Bxe7 {[%clk 0:02:42]} 21. a4 {[%clk 0:02:27]}  f5 {[%clk 0:02:42]} 22. Ne2 {[%clk 0:02:21]}  Ncb4 {[%clk 0:02:40]} 23. Ne1 {[%clk 0:02:19]}  Kf7 {[%clk 0:02:38]} 24. Nf4 {[%clk 0:02:09]}  Bd6 {[%clk 0:02:31]} 25. Nxd5 {[%clk 0:02:09]}  Nxd5 {[%clk 0:02:32]} 26. Bd2 {[%clk 0:02:08]}  b6 {[%clk 0:02:32]} 27. g3 {[%clk 0:02:08]}  Kf6 {[%clk 0:02:31]} 28. Nf3 {[%clk 0:02:00]}  f4 {[%clk 0:02:26]} 29. g4 {[%clk 0:01:57]}  g5 {[%clk 0:02:24]} 30. h3 {[%clk 0:01:56]}  h6 {[%clk 0:02:21]} 31. Kg2 {[%clk 0:01:53]}  Kg6 {[%clk 0:02:20]} 32. Be1 {[%clk 0:01:42]}  Nf6 {[%clk 0:02:18]} 33. Nd2 {[%clk 0:01:42]}  h5 {[%clk 0:02:15]} 34. Ne4 {[%clk 0:01:31]}  Nxe4 {[%clk 0:02:14]} 35. dxe4 {[%clk 0:01:30]}  hxg4 {[%clk 0:02:13]} 36. hxg4 {[%clk 0:01:30]}  Kf6 {[%clk 0:02:09]} 37. f3 {[%clk 0:01:29]}  Be5 {[%clk 0:02:09]} 38. Kf1 {[%clk 0:01:28]}  Ke6 {[%clk 0:02:09]} 39. Ke2 {[%clk 0:01:27]}  c4 {[%clk 0:01:54]} 40. bxc4 {[%clk 0:01:21]}  Kd6 {[%clk 0:01:54]} 41. Kd3 {[%clk 0:01:19]}  Kc5 {[%clk 0:01:54]} 42. c3 {[%clk 0:01:16]}  Bf6 {[%clk 0:01:37]} 43. Bf2 {[%clk 0:00:57]}  Kc6 {[%clk 0:01:35]} 44. cxd4 {[%clk 0:00:56]}  Kd6 {[%clk 0:01:35]} 45. e5+ {[%clk 0:00:55]} 1-0


[Site "https://www.chess.com"]

[Event "Titled Tuesday Blitz May 03 Early 2022"]
[White "Toncheva, Nadya"]
[Black "Obolenskikh, Dmitry"]
[WhiteFideId "2924056"]
[BlackFideId "4156013"]
[WhiteElo "2475"]
[BlackElo "2823"]
[Result "0-1"]
[Round "01"]
[TimeControl "180+1"]
[Date "2022.05.03"]
[WhiteClock "0:00:05"]
[BlackClock "0:00:41"]

1. e4 {[%clk 0:03:00]}  e5 {[%clk 0:02:59]} 2. Nf3 {[%clk 0:03:00]}  Nc6 {[%clk 0:02:59]} 3. Bb5 {[%clk 0:03:00]}  a6 {[%clk 0:02:58]} 4. Ba4 {[%clk 0:03:00]}  Nf6 {[%clk 0:02:57]} 5. O-O {[%clk 0:03:01]}  Be7 {[%clk 0:02:58]} 6. Re1 {[%clk 0:03:00]}  b5 {[%clk 0:02:58]} 7. Bb3 {[%clk 0:03:00]}  d6 {[%clk 0:02:59]} 8. c3 {[%clk 0:03:00]}  O-O {[%clk 0:02:59]} 9. h3 {[%clk 0:03:00]}  Nb8 {[%clk 0:02:59]} 10. a4 {[%clk 0:02:58]}  Bb7 {[%clk 0:02:58]} 11. d3 {[%clk 0:02:58]}  Nbd7 {[%clk 0:02:57]} 12. Nbd2 {[%clk 0:02:56]}  c5 {[%clk 0:02:54]} 13. Nf1 {[%clk 0:02:55]}  Qc7 {[%clk 0:02:49]} 14. Ng3 {[%clk 0:02:53]}  g6 {[%clk 0:02:49]} 15. Bh6 {[%clk 0:02:50]}  Rfe8 {[%clk 0:02:49]} 16. Nh2 {[%clk 0:02:21]}  d5 {[%clk 0:02:42]} 17. Ng4 {[%clk 0:02:16]}  Nxg4 {[%clk 0:02:40]} 18. Qxg4 {[%clk 0:02:16]}  Nf6 {[%clk 0:02:39]} 19. Qe2 {[%clk 0:01:59]}  c4 {[%clk 0:02:37]} 20. Bc2 {[%clk 0:01:54]}  dxe4 {[%clk 0:02:29]} 21. Nxe4 {[%clk 0:01:45]}  Nxe4 {[%clk 0:02:26]} 22. dxe4 {[%clk 0:01:45]}  Bf8 {[%clk 0:02:20]} 23. Be3 {[%clk 0:01:36]}  Red8 {[%clk 0:02:14]} 24. Rad1 {[%clk 0:01:28]}  Bc6 {[%clk 0:02:11]} 25. h4 {[%clk 0:01:13]}  Qb7 {[%clk 0:02:06]} 26. Bc1 {[%clk 0:01:08]}  Qe7 {[%clk 0:01:56]} 27. h5 {[%clk 0:01:05]}  Qh4 {[%clk 0:01:52]} 28. hxg6 {[%clk 0:00:35]}  hxg6 {[%clk 0:01:53]} 29. g3 {[%clk 0:00:36]}  Qh3 {[%clk 0:01:51]} 30. Qf1 {[%clk 0:00:35]}  Qxf1+ {[%clk 0:01:42]} 31. Kxf1 {[%clk 0:00:36]}  bxa4 {[%clk 0:01:35]} 32. Bg5 {[%clk 0:00:33]}  Rxd1 {[%clk 0:01:31]} 33. Rxd1 {[%clk 0:00:33]}  a3 {[%clk 0:01:30]} 34. bxa3 {[%clk 0:00:29]}  Bxa3 {[%clk 0:01:30]} 35. Bf6 {[%clk 0:00:29]}  a5 {[%clk 0:01:08]} 36. Ke2 {[%clk 0:00:29]}  Bf8 {[%clk 0:01:07]} 37. Bxe5 {[%clk 0:00:18]}  a4 {[%clk 0:01:07]} 38. f4 {[%clk 0:00:14]}  a3 {[%clk 0:01:00]} 39. Ra1 {[%clk 0:00:14]}  Ra7 {[%clk 0:00:54]} 40. Bd4 {[%clk 0:00:13]}  Rb7 {[%clk 0:00:54]} 41. Rh1 {[%clk 0:00:10]}  Bg7 {[%clk 0:00:50]} 42. Ra1 {[%clk 0:00:08]}  Rb2 {[%clk 0:00:50]} 43. Kd1 {[%clk 0:00:08]}  Bxd4 {[%clk 0:00:47]} 44. cxd4 {[%clk 0:00:08]}  a2 {[%clk 0:00:47]} 45. Kc1 {[%clk 0:00:08]}  c3 {[%clk 0:00:47]} 46. Bd3 {[%clk 0:00:05]}  Rg2 {[%clk 0:00:41]} 0-1


[Site "https://www.chess.com"]

[Event "Titled Tuesday Blitz May 03 Early 2022"]
[White "Xu, Yi"]
[Black "Eynullayev, Atilla"]
[WhiteFideId "8605564"]
[BlackFideId "13413570"]
[WhiteElo "2471"]
[BlackElo "1936"]
[Result "1-0"]
[Round "01"]
[TimeControl "180+1"]
[Date "2022.05.03"]
[WhiteClock "0:02:00"]
[BlackClock "0:01:34"]

1. e4 {[%clk 0:02:59]}  c6 {[%clk 0:02:59]} 2. d4 {[%clk 0:02:59]}  d5 {[%clk 0:03:00]} 3. e5 {[%clk 0:03:00]}  Bf5 {[%clk 0:02:59]} 4. h4 {[%clk 0:03:00]}  h5 {[%clk 0:02:59]} 5. Bd3 {[%clk 0:03:00]}  Bxd3 {[%clk 0:02:59]} 6. Qxd3 {[%clk 0:03:00]}  Qa5+ {[%clk 0:02:59]} 7. Nd2 {[%clk 0:03:00]}  e6 {[%clk 0:02:59]} 8. Ne2 {[%clk 0:03:00]}  Qa6 {[%clk 0:02:59]} 9. c4 {[%clk 0:02:59]}  Ne7 {[%clk 0:02:52]} 10. O-O {[%clk 0:02:59]}  c5 {[%clk 0:02:50]} 11. Nc3 {[%clk 0:02:56]}  dxc4 {[%clk 0:02:24]} 12. Nxc4 {[%clk 0:02:52]}  Nf5 {[%clk 0:02:23]} 13. d5 {[%clk 0:02:44]}  Nd7 {[%clk 0:02:18]} 14. Bg5 {[%clk 0:02:39]}  b5 {[%clk 0:01:46]} 15. dxe6 {[%clk 0:02:21]}  fxe6 {[%clk 0:01:34]} 16. Nxb5 {[%clk 0:02:00]} 1-0


[Site "https://www.chess.com"]

[Event "Titled Tuesday Blitz May 03 Early 2022"]
[White "Yilmaz, Mustafa"]
[Black "Bettalli, Francesco"]
[WhiteFideId "6302718"]
[BlackFideId "2816453"]
[WhiteElo "2568"]
[BlackElo "2216"]
[Result "1-0"]
[Round "01"]
[TimeControl "180+1"]
[Date "2022.05.03"]
[WhiteClock "0:01:50"]
[BlackClock "0:02:17"]

1. Nf3 {[%clk 0:02:59]}  c5 {[%clk 0:02:57]} 2. g3 {[%clk 0:02:51]}  g6 {[%clk 0:02:57]} 3. Bg2 {[%clk 0:02:51]}  Bg7 {[%clk 0:02:56]} 4. O-O {[%clk 0:02:51]}  Nc6 {[%clk 0:02:53]} 5. e4 {[%clk 0:02:48]}  e6 {[%clk 0:02:53]} 6. c3 {[%clk 0:02:47]}  Nge7 {[%clk 0:02:53]} 7. d4 {[%clk 0:02:47]}  cxd4 {[%clk 0:02:54]} 8. cxd4 {[%clk 0:02:47]}  d5 {[%clk 0:02:55]} 9. e5 {[%clk 0:02:47]}  O-O {[%clk 0:02:55]} 10. Na3 {[%clk 0:02:42]}  f6 {[%clk 0:02:55]} 11. exf6 {[%clk 0:02:37]}  Bxf6 {[%clk 0:02:56]} 12. Nc2 {[%clk 0:02:28]}  Nf5 {[%clk 0:02:42]} 13. Qd3 {[%clk 0:02:21]}  b6 {[%clk 0:02:40]} 14. Re1 {[%clk 0:02:12]}  Re8 {[%clk 0:02:34]} 15. Bf4 {[%clk 0:02:12]}  a5 {[%clk 0:02:33]} 16. Ne5 {[%clk 0:01:57]}  Nxe5 {[%clk 0:02:31]} 17. Bxe5 {[%clk 0:01:57]}  Ba6 {[%clk 0:02:29]} 18. Qd2 {[%clk 0:01:57]}  Nd6 {[%clk 0:02:27]} 19. Bxf6 {[%clk 0:01:51]}  Qxf6 {[%clk 0:02:27]} 20. Ne3 {[%clk 0:01:51]}  Rad8 {[%clk 0:02:25]} 21. Ng4 {[%clk 0:01:51]}  Qf5 {[%clk 0:02:17]} 22. Nh6+ {[%clk 0:01:50]} 1-0


[Site "https://www.chess.com"]

[Event "Titled Tuesday Blitz May 03 Early 2022"]
[White "Zainullina, Nataliya"]
[Black "Aaditya Dhingra"]
[WhiteFideId "4145488"]
[BlackFideId "25678191"]
[WhiteElo "2047"]
[BlackElo "1849"]
[Result "0-1"]
[Round "01"]
[TimeControl "180+1"]
[Date "2022.05.03"]
[WhiteClock "0:00:17"]
[BlackClock "0:00:29"]

1. Nf3 {[%clk 0:02:53]}  c5 {[%clk 0:02:58]} 2. c4 {[%clk 0:02:52]}  Nf6 {[%clk 0:02:57]} 3. Nc3 {[%clk 0:02:52]}  g6 {[%clk 0:02:56]} 4. e3 {[%clk 0:02:51]}  Bg7 {[%clk 0:02:55]} 5. d4 {[%clk 0:02:50]}  O-O {[%clk 0:02:55]} 6. Be2 {[%clk 0:02:49]}  cxd4 {[%clk 0:02:54]} 7. exd4 {[%clk 0:02:48]}  d5 {[%clk 0:02:54]} 8. cxd5 {[%clk 0:02:41]}  Nxd5 {[%clk 0:02:53]} 9. O-O {[%clk 0:02:40]}  Nc6 {[%clk 0:02:51]} 10. Qb3 {[%clk 0:02:35]}  Be6 {[%clk 0:02:19]} 11. Qxb7 {[%clk 0:02:32]}  Na5 {[%clk 0:02:13]} 12. Qa6 {[%clk 0:02:26]}  Nb4 {[%clk 0:02:09]} 13. Qb5 {[%clk 0:02:19]}  Nc2 {[%clk 0:02:03]} 14. Rb1 {[%clk 0:02:15]}  Rb8 {[%clk 0:01:49]} 15. Qa4 {[%clk 0:02:13]}  Bf5 {[%clk 0:01:49]} 16. g4 {[%clk 0:02:05]}  Rb4 {[%clk 0:01:47]} 17. Qxb4 {[%clk 0:01:52]}  Nxb4 {[%clk 0:01:46]} 18. gxf5 {[%clk 0:01:52]}  gxf5 {[%clk 0:01:46]} 19. Be3 {[%clk 0:01:48]}  Nd5 {[%clk 0:01:45]} 20. Bg5 {[%clk 0:01:47]}  h6 {[%clk 0:01:40]} 21. Bd2 {[%clk 0:01:43]}  Nc6 {[%clk 0:01:37]} 22. Rfd1 {[%clk 0:01:35]}  e6 {[%clk 0:01:36]} 23. Bc4 {[%clk 0:01:28]}  Nce7 {[%clk 0:01:31]} 24. Be1 {[%clk 0:01:22]}  Qa8 {[%clk 0:01:27]} 25. Bd2 {[%clk 0:01:06]}  Nxc3 {[%clk 0:01:26]} 26. Bxc3 {[%clk 0:01:01]}  Qxf3 {[%clk 0:01:26]} 27. Rd3 {[%clk 0:01:01]}  Qc6 {[%clk 0:01:21]} 28. Bb3 {[%clk 0:00:59]}  Nd5 {[%clk 0:01:16]} 29. Rg3 {[%clk 0:00:58]}  Kh7 {[%clk 0:01:08]} 30. Re1 {[%clk 0:00:54]}  f4 {[%clk 0:01:07]} 31. Rg4 {[%clk 0:00:54]}  f5 {[%clk 0:01:04]} 32. Rg2 {[%clk 0:00:51]}  Bf6 {[%clk 0:00:52]} 33. a3 {[%clk 0:00:35]}  f3 {[%clk 0:00:45]} 34. Rg3 {[%clk 0:00:34]}  Bh4 {[%clk 0:00:46]} 35. Bxd5 {[%clk 0:00:29]}  Qxd5 {[%clk 0:00:42]} 36. Re5 {[%clk 0:00:28]}  Bxg3 {[%clk 0:00:38]} 37. Rxd5 {[%clk 0:00:28]}  exd5 {[%clk 0:00:34]} 38. hxg3 {[%clk 0:00:27]}  Re8 {[%clk 0:00:35]} 39. Kf1 {[%clk 0:00:27]}  Kg6 {[%clk 0:00:35]} 40. Bd2 {[%clk 0:00:25]}  h5 {[%clk 0:00:34]} 41. Be3 {[%clk 0:00:21]}  h4 {[%clk 0:00:32]} 42. gxh4 {[%clk 0:00:21]}  Kh5 {[%clk 0:00:33]} 43. Ke1 {[%clk 0:00:17]}  f4 {[%clk 0:00:32]} 44. Kd2 {[%clk 0:00:17]}  fxe3+ {[%clk 0:00:33]} 45. fxe3 {[%clk 0:00:18]}  Kxh4 {[%clk 0:00:32]} 46. Kd3 {[%clk 0:00:17]}  f2 {[%clk 0:00:31]} 47. Ke2 {[%clk 0:00:17]}  Kg3 {[%clk 0:00:32]} 48. Kf1 {[%clk 0:00:16]}  Rc8 {[%clk 0:00:31]} 49. b4 {[%clk 0:00:17]}  Rc1+ {[%clk 0:00:30]} 50. Ke2 {[%clk 0:00:17]}  f1=Q+ {[%clk 0:00:29]} 51. Kd2 {[%clk 0:00:17]}  Qd1# {[%clk 0:00:29]} 0-1


[Site "https://www.chess.com"]